bitfinex-derivatives/quotes_BTCF0:USTF0_20260111
["timestamp","ask_amount","ask_price","bid_price","bid_amount"]
[1768096335959,0.02366374,90676.0,90670.0,0.011042]
[1768096336163,0.00242618,90678.0,90670.0,0.011042]
[1768096336363,0.02366283,90677.0,90670.0,0.011042]
[1768096336668,0.02366283,90676.0,90670.0,0.011042]
[1768096336870,0.00242618,90678.0,90670.0,0.011042]
[1768096337077,0.02366264,90677.0,90670.0,0.011042]
[1768096337274,0.02366264,90676.0,90670.0,0.011042]
[1768096337463,0.00242618,90678.0,90670.0,0.011042]
[1768096337665,0.02366173,90677.0,90670.0,0.011042]
[1768096337865,0.02366173,90676.0,90670.0,0.011042]
[1768096338080,0.00242618,90678.0,90670.0,0.011042]
[1768096338276,0.02366173,90677.0,90670.0,0.011042]
[1768096338475,0.02366173,90676.0,90670.0,0.011042]
[1768096338673,0.00242618,90678.0,90670.0,0.011042]
[1768096338874,0.02366098,90677.0,90670.0,0.011042]
[1768096339177,0.02366098,90676.0,90670.0,0.011042]
[1768096339366,0.00242618,90678.0,90670.0,0.011042]
[1768096339563,0.00736419,90676.0,90658.0,0.00970343]
[1768096339769,0.15209808,90670.0,90659.0,0.011043]
[1768096339978,0.15946227,90670.0,90652.0,0.09388]
[1768096340279,0.15946227,90670.0,90652.0,0.10358343]
[1768096341479,0.00735609,90669.0,90652.0,0.10358343]
[1768096341870,0.00735609,90668.0,90650.0,0.011044]
[1768096342177,0.00735609,90668.0,90651.0,0.09388]
[1768096343373,0.00735609,90668.0,90652.0,0.011044]
[1768096343672,0.00735609,90668.0,90651.0,0.09388]
[1768096346583,0.00735609,90668.0,90651.0,0.10358343]
[1768096347081,0.00735609,90668.0,90652.0,0.011044]
[1768096348782,0.00735609,90668.0,90651.0,0.10358343]
[1768096348984,0.00735609,90668.0,90652.0,0.00970343]
[1768096353095,0.01839809,90668.0,90652.0,0.00970343]
[1768096353286,0.00735609,90668.0,90652.0,0.00970343]
[1768096354494,0.011042,90667.0,90652.0,0.00970343]
[1768096355184,0.00735609,90668.0,90652.0,0.00970343]
[1768096355792,0.01839809,90668.0,90652.0,0.00970343]
[1768096359789,0.00735609,90668.0,90652.0,0.00970343]
[1768096361295,0.011042,90671.0,90653.0,0.00908508]
[1768096361593,0.011042,90671.0,90654.0,0.00908508]
[1768096362191,0.01966345,90671.0,90654.0,0.00908508]
[1768096362392,0.011042,90669.0,90654.0,0.00908508]
[1768096371199,0.011042,90667.0,90654.0,0.00908508]
[1768096374005,0.011042,90670.0,90654.0,0.00908508]
[1768096376807,0.00930369,90672.0,90654.0,0.00908508]
[1768096378206,0.011042,90668.0,90654.0,0.00908508]
[1768096383713,0.011042,90671.0,90654.0,0.00908508]
[1768096384008,0.02366904,90670.0,90654.0,0.00908508]
[1768096384210,0.02366904,90669.0,90654.0,0.00908508]
[1768096384413,0.011042,90671.0,90654.0,0.00908508]
[1768096384611,0.02366914,90670.0,90654.0,0.00908508]
[1768096384802,0.02366914,90669.0,90654.0,0.00908508]
[1768096385102,0.011042,90671.0,90654.0,0.00908508]
[1768096385298,0.02366916,90670.0,90654.0,0.00908508]
[1768096385499,0.02366916,90669.0,90654.0,0.00908508]
[1768096385713,0.011042,90671.0,90654.0,0.00908508]
[1768096386013,0.02366922,90670.0,90654.0,0.00908508]
[1768096386207,0.02366922,90669.0,90654.0,0.00908508]
[1768096386510,0.011042,90671.0,90654.0,0.00908508]
[1768096386712,0.0236693,90670.0,90654.0,0.00908508]
[1768096386908,0.0236693,90669.0,90654.0,0.00908508]
[1768096387111,0.011042,90671.0,90654.0,0.00908508]
[1768096387307,0.0236693,90670.0,90654.0,0.00908508]
[1768096387510,0.0236693,90669.0,90654.0,0.00908508]
[1768096387810,0.011042,90671.0,90654.0,0.00908508]
[1768096388108,0.02366854,90670.0,90654.0,0.00908508]
[1768096388300,0.02366854,90669.0,90654.0,0.00908508]
[1768096388509,0.011042,90671.0,90654.0,0.00908508]
[1768096388705,0.02366866,90670.0,90654.0,0.00908508]
[1768096388907,0.02366866,90669.0,90654.0,0.00908508]
[1768096389106,0.011042,90671.0,90654.0,0.00908508]
[1768096389309,0.02366865,90670.0,90654.0,0.00908508]
[1768096389510,0.03471065,90669.0,90654.0,0.00908508]
[1768096389702,0.011042,90669.0,90654.0,0.00908508]
[1768096390114,0.02034569,90672.0,90654.0,0.00908508]
[1768096390312,0.02366879,90671.0,90654.0,0.00908508]
[1768096390513,0.02366879,90670.0,90654.0,0.00908508]
[1768096390813,0.02366879,90669.0,90654.0,0.00908508]
[1768096391013,0.02034569,90672.0,90654.0,0.00908508]
[1768096391214,0.02367014,90671.0,90654.0,0.00908508]
[1768096391514,0.03471214,90670.0,90654.0,0.00908508]
[1768096391713,0.02367014,90669.0,90654.0,0.00908508]
[1768096392115,0.00930369,90672.0,90654.0,0.00908508]
[1768096392317,0.011042,90668.0,90654.0,0.00908508]
[1768096396020,0.03292,90667.0,90654.0,0.00908508]
[1768096400513,0.011042,90666.0,90654.0,0.00908508]
[1768096400714,0.03292,90667.0,90654.0,0.00908508]
[1768096413828,0.04295448,90667.0,90651.0,0.09388]
[1768096414017,0.011042,90666.0,90651.0,0.09388]
[1768096414633,0.04295448,90667.0,90651.0,0.09388]
[1768096415330,0.04295448,90667.0,90651.0,0.10319593]
[1768096417838,0.03292,90667.0,90651.0,0.10319593]
[1768096418027,0.03292,90667.0,90652.0,0.00931593]
[1768096420833,0.0099707,90665.0,90651.0,0.09388]
[1768096421033,0.0099707,90665.0,90646.0,0.00931593]
[1768096421034,0.0099707,90661.0,90646.0,0.00931593]
[1768096432140,0.152118,90660.0,90646.0,0.00931593]
[1768096432342,0.0099707,90661.0,90646.0,0.00931593]
[1768096433546,0.0099707,90661.0,90647.0,0.07951299]
[1768096435749,0.00894751,90664.0,90647.0,0.07951299]
[1768096436743,0.03292,90667.0,90653.0,0.01100035]
[1768096437055,0.03292,90667.0,90656.0,0.00922533]
[1768096437945,0.03292,90667.0,90658.0,0.02022568]
[1768096438145,0.09388,90670.0,90659.0,0.00922533]
[1768096441051,0.03134,90669.0,90659.0,0.00922533]
[1768096449259,0.03134,90669.0,90654.0,0.00920793]
[1768096453461,0.03953347,90669.0,90654.0,0.00920793]
[1768096454466,0.00815264,90667.0,90649.0,0.07951299]
[1768096456556,0.00815264,90667.0,90650.0,0.011044]
[1768096457157,0.00815264,90667.0,90650.0,0.02025193]
[1768096457356,0.00815264,90667.0,90651.0,0.00920793]
[1768096459168,0.00815264,90667.0,90652.0,0.011044]
[1768096464464,0.00815264,90667.0,90651.0,0.00920793]
[1768096468270,0.03134,90669.0,90651.0,0.00920793]
[1768096469470,0.03134,90669.0,90652.0,0.02025193]
[1768096477373,0.0387051,90669.0,90652.0,0.02025193]
[1768096479165,0.0073651,90669.0,90652.0,0.02025193]
[1768096483075,0.02883,90668.0,90652.0,0.02025193]
[1768096483376,0.02883,90668.0,90653.0,0.00927117]
[1768096503097,0.0073651,90669.0,90653.0,0.00927117]
[1768096505995,0.02494,90668.0,90653.0,0.00927117]
[1768096506698,0.02494,90668.0,90654.0,0.011044]
[1768096517112,0.02494,90668.0,90653.0,0.00927117]
[1768096519816,0.02494,90668.0,90654.0,0.011044]
[1768096521015,0.0073651,90669.0,90654.0,0.011044]
[1768096524417,0.03615,90668.0,90654.0,0.011044]
[1768096534823,0.03615,90668.0,90656.0,0.011043]
[1768096541724,0.03615,90668.0,90659.0,0.011043]
[1768096541918,0.03615,90668.0,90655.0,0.00971059]
[1768096542118,0.03615,90668.0,90661.0,0.011043]
[1768096549029,0.00629826,90677.0,90659.0,0.011043]
[1768096549230,0.09388,90676.0,90664.0,0.011042]
[1768096549634,0.10011463,90676.0,90664.0,0.011042]
[1768096550025,0.00623463,90675.0,90664.0,0.011042]
[1768096550227,0.00623463,90675.0,90661.0,0.011043]
[1768096550535,0.00623463,90675.0,90663.0,0.011043]
[1768096559340,0.00623463,90675.0,90660.0,0.011043]
[1768096560244,0.00623463,90675.0,90662.0,0.011043]
[1768096561235,0.00623463,90675.0,90659.0,0.00971059]
[1768096561236,0.12502,90677.0,90664.0,0.011042]
[1768096563336,0.13127273,90677.0,90664.0,0.011042]
[1768096563538,0.02373997,90676.0,90664.0,0.011042]
[1768096563843,0.02373997,90675.0,90662.0,0.011043]
[1768096564044,0.02373997,90674.0,90662.0,0.011043]
[1768096564244,0.13127273,90677.0,90662.0,0.011043]
[1768096564446,0.02373102,90676.0,90662.0,0.011043]
[1768096564647,0.02373102,90675.0,90662.0,0.011043]
[1768096564845,0.02373102,90674.0,90662.0,0.011043]
[1768096565037,0.13127273,90677.0,90662.0,0.011043]
[1768096565345,0.02373098,90676.0,90662.0,0.011043]
[1768096565546,0.02373098,90675.0,90662.0,0.011043]
[1768096565746,0.02373098,90674.0,90662.0,0.011043]
[1768096566048,0.13127273,90677.0,90662.0,0.011043]
[1768096566240,0.02996426,90676.0,90662.0,0.011043]
[1768096566443,0.02373117,90675.0,90662.0,0.011043]
[1768096570547,0.02373117,90675.0,90664.0,0.011042]
[1768096573659,0.00623309,90676.0,90664.0,0.011042]
[1768096574445,0.00623309,90676.0,90662.0,0.011043]
[1768096575156,0.00623309,90676.0,90660.0,0.011043]
[1768096580157,0.00623309,90676.0,90660.0,0.02033634]
[1768096580754,0.00623309,90676.0,90662.0,0.011043]
[1768096583056,0.12502,90677.0,90662.0,0.011043]
[1768096592766,0.13123513,90677.0,90662.0,0.011043]
[1768096596968,0.13123513,90677.0,90660.0,0.00929334]
[1768096597174,0.13123513,90677.0,90661.0,0.011043]
[1768096598271,0.00593586,90676.0,90661.0,0.011043]
[1768096604870,0.02647,90675.0,90661.0,0.011043]
[1768096606183,0.02647,90675.0,90660.0,0.00929334]
[1768096610186,0.02647,90675.0,90660.0,0.02033634]
[1768096613492,0.02389126,90674.0,90660.0,0.02033634]
[1768096613694,0.02389126,90673.0,90660.0,0.02033634]
[1768096613893,0.02647,90675.0,90660.0,0.02033634]
[1768096614190,0.02389109,90674.0,90660.0,0.02033634]
[1768096614390,0.02389109,90673.0,90660.0,0.02033634]
[1768096614588,0.02647,90675.0,90660.0,0.02033634]
[1768096614789,0.02389109,90674.0,90660.0,0.02033634]
[1768096614989,0.02389109,90673.0,90660.0,0.02033634]
[1768096615190,0.02647,90675.0,90660.0,0.02033634]
[1768096615494,0.02389109,90674.0,90660.0,0.02033634]
[1768096615695,0.02389109,90673.0,90660.0,0.02033634]
[1768096615993,0.02647,90675.0,90660.0,0.02033634]
[1768096616193,0.02389109,90674.0,90660.0,0.02033634]
[1768096616396,0.02389109,90673.0,90660.0,0.02033634]
[1768096616590,0.02647,90675.0,90660.0,0.02033634]
[1768096616790,0.02389109,90674.0,90660.0,0.02033634]
[1768096616996,0.02389109,90673.0,90660.0,0.02033634]
[1768096617197,0.02647,90675.0,90660.0,0.02033634]
[1768096617495,0.02389108,90674.0,90663.0,0.011043]
[1768096617697,0.02389108,90673.0,90663.0,0.011043]
[1768096617897,0.02647,90675.0,90663.0,0.011043]
[1768096618098,0.02389108,90674.0,90663.0,0.011043]
[1768096618299,0.02389108,90673.0,90663.0,0.011043]
[1768096618599,0.02647,90675.0,90663.0,0.011043]
[1768096618900,0.02389108,90674.0,90663.0,0.011043]
[1768096619102,0.02389108,90673.0,90663.0,0.011043]
[1768096619298,0.02647,90675.0,90660.0,0.02033634]
[1768096619497,0.02389108,90674.0,90660.0,0.02033634]
[1768096619797,0.02389108,90673.0,90660.0,0.02033634]
[1768096619996,0.02647,90675.0,90660.0,0.02033634]
[1768096620199,0.02389107,90674.0,90660.0,0.02033634]
[1768096620400,0.02389107,90673.0,90660.0,0.02033634]
[1768096620698,0.02647,90675.0,90660.0,0.02033634]
[1768096620899,0.02389109,90674.0,90660.0,0.02033634]
[1768096621088,0.02389109,90673.0,90660.0,0.02033634]
[1768096621288,0.02647,90675.0,90660.0,0.02033634]
[1768096621496,0.02389106,90674.0,90660.0,0.02033634]
[1768096621692,0.02389106,90673.0,90660.0,0.02033634]
[1768096621894,0.02647,90675.0,90660.0,0.02033634]
[1768096622087,0.02389107,90674.0,90660.0,0.02033634]
[1768096622289,0.02389107,90673.0,90660.0,0.02033634]
[1768096622486,0.02647,90675.0,90660.0,0.02033634]
[1768096622689,0.02389107,90674.0,90660.0,0.02033634]
[1768096622885,0.02389107,90673.0,90660.0,0.02033634]
[1768096623087,0.02647,90675.0,90660.0,0.02033634]
[1768096623300,0.02389107,90674.0,90660.0,0.02033634]
[1768096623495,0.02647,90675.0,90660.0,0.02033634]
[1768096623993,0.02647,90675.0,90661.0,0.01936199]
[1768096624200,0.02647,90675.0,90662.0,0.00949339]
[1768096624396,0.02647,90675.0,90663.0,0.011043]
[1768096624699,0.02647,90675.0,90663.0,0.02053639]
[1768096624901,0.02647,90675.0,90665.0,0.011042]
[1768096629009,0.02647,90675.0,90663.0,0.00949339]
[1768096629302,0.02647,90675.0,90664.0,0.011042]
[1768096629603,0.02647,90675.0,90664.0,0.02053539]
[1768096631205,0.02647,90675.0,90664.0,0.00949339]
[1768096631904,0.09388,90677.0,90664.0,0.00949339]
[1768096634004,0.09388,90677.0,90663.0,0.011043]
[1768096635710,0.09965968,90677.0,90661.0,0.011043]
[1768096636108,0.02362,90676.0,90661.0,0.011043]
[1768096637417,0.02362,90676.0,90658.0,0.00949339]
[1768096637606,0.02362,90676.0,90666.0,0.011042]
[1768096639313,0.02362,90676.0,90659.0,0.01936199]
[1768096640108,0.02362,90676.0,90660.0,0.00949339]
[1768096640412,0.02362,90676.0,90664.0,0.011042]
[1768096641214,0.02362,90676.0,90663.0,0.011043]
[1768096642116,0.02362,90676.0,90665.0,0.011042]
[1768096643920,0.02362,90676.0,90667.0,0.011042]
[1768096652936,0.02362,90676.0,90662.0,0.01936199]
[1768096653640,0.02362,90676.0,90667.0,0.011042]
[1768096653935,1.8e-07,90678.0,90667.0,0.01872871]
[1768096654137,1.8e-07,90678.0,90675.0,0.00902887]
[1768096658145,1.8e-07,90678.0,90676.0,0.011041]
[1768096658441,1.8e-07,90678.0,90677.0,0.00902887]
[1768096659140,0.01685336,90703.0,90679.0,0.00969984]
[1768096659344,0.15205586,90700.0,90682.0,0.00902887]
[1768096659543,0.02390019,90699.0,90682.0,0.00902887]
[1768096659744,0.02390019,90698.0,90682.0,0.00902887]
[1768096659934,0.02390019,90697.0,90682.0,0.00902887]
[1768096660135,0.00581185,90699.0,90682.0,0.00902887]
[1768096660335,0.02388956,90698.0,90682.0,0.00902887]
[1768096660644,0.00581185,90699.0,90682.0,0.00902887]
[1768096660942,0.0238819,90698.0,90682.0,0.00902887]
[1768096661143,0.00581185,90699.0,90682.0,0.00902887]
[1768096663352,0.033048,90698.0,90682.0,0.00902887]
[1768096663540,0.02386916,90697.0,90682.0,0.00902887]
[1768096663845,0.02386916,90696.0,90682.0,0.00902887]
[1768096664042,0.02386916,90695.0,90682.0,0.00902887]
[1768096664241,0.02386916,90694.0,90682.0,0.00902887]
[1768096664449,0.02386916,90693.0,90682.0,0.00902887]
[1768096664640,0.02386916,90692.0,90682.0,0.00902887]
[1768096664841,0.02386916,90691.0,90682.0,0.00902887]
[1768096665050,0.02386916,90690.0,90682.0,0.00902887]
[1768096665349,0.02201,90698.0,90682.0,0.00902887]
[1768096665549,0.02386307,90697.0,90682.0,0.00902887]
[1768096665850,0.02386307,90696.0,90682.0,0.00902887]
[1768096666056,0.02386307,90695.0,90682.0,0.00902887]
[1768096666247,0.02386307,90694.0,90682.0,0.00902887]
[1768096666443,0.02386307,90693.0,90682.0,0.00902887]
[1768096666750,0.02386307,90692.0,90682.0,0.02006887]
[1768096666949,0.02386307,90691.0,90682.0,0.02006887]
[1768096667250,0.02201,90698.0,90682.0,0.02006887]
[1768096667446,0.02385908,90697.0,90682.0,0.02006887]
[1768096667747,0.02385908,90696.0,90682.0,0.02006887]
[1768096668048,0.02385908,90695.0,90682.0,0.00902887]
[1768096668246,0.02385908,90694.0,90682.0,0.00902887]
[1768096668446,0.02385908,90693.0,90682.0,0.00902887]
[1768096668646,0.02385908,90692.0,90682.0,0.00902887]
[1768096668846,0.02385908,90691.0,90682.0,0.00902887]
[1768096669047,0.02201,90698.0,90682.0,0.00902887]
[1768096669250,0.02385768,90697.0,90682.0,0.00902887]
[1768096669554,0.02385768,90696.0,90682.0,0.00902887]
[1768096669744,0.02385768,90695.0,90682.0,0.00902887]
[1768096670042,0.02385768,90694.0,90682.0,0.00902887]
[1768096670242,0.02385768,90693.0,90682.0,0.00902887]
[1768096670445,0.02385768,90692.0,90682.0,0.00902887]
[1768096670646,0.02385768,90691.0,90682.0,0.00902887]
[1768096670945,0.03881379,90698.0,90682.0,0.00902887]
[1768096671145,0.02385593,90697.0,90682.0,0.00902887]
[1768096671345,0.02385593,90696.0,90682.0,0.00902887]
[1768096671556,0.02385593,90695.0,90682.0,0.00902887]
[1768096671745,0.02385593,90694.0,90682.0,0.00902887]
[1768096671946,0.02385593,90693.0,90682.0,0.00902887]
[1768096672147,0.02385593,90692.0,90682.0,0.00902887]
[1768096672451,0.02385593,90691.0,90682.0,0.00902887]
[1768096672652,0.03881379,90698.0,90682.0,0.00902887]
[1768096672852,0.00575921,90696.0,90678.0,0.00969984]
[1768096673055,0.02385551,90695.0,90678.0,0.00969984]
[1768096673352,0.02385551,90694.0,90678.0,0.01881023]
[1768096673554,0.00575921,90696.0,90678.0,0.01881023]
[1768096674154,0.00575921,90696.0,90681.0,0.01104]
[1768096676455,0.02201,90698.0,90681.0,0.02015039]
[1768096680259,0.02201,90698.0,90683.0,0.01104]
[1768096681558,0.02201,90698.0,90681.0,0.00911039]
[1768096681955,0.02201,90698.0,90682.0,0.01104]
[1768096682761,0.02201,90698.0,90681.0,0.00911039]
[1768096683561,0.0238808,90697.0,90681.0,0.00911039]
[1768096683759,0.0238808,90696.0,90681.0,0.00911039]
[1768096683951,0.02201,90698.0,90681.0,0.00911039]
[1768096684151,0.0238808,90697.0,90681.0,0.02015039]
[1768096684452,0.0238808,90696.0,90681.0,0.02015039]
[1768096684752,0.02201,90698.0,90681.0,0.02015039]
[1768096684955,0.02388382,90697.0,90683.0,0.01104]
[1768096685153,0.02388382,90696.0,90683.0,0.01104]
[1768096685352,0.02388382,90695.0,90683.0,0.01104]
[1768096685548,0.02201,90698.0,90684.0,0.00961522]
[1768096685761,0.02388753,90697.0,90684.0,0.00961522]
[1768096686062,0.02388753,90696.0,90685.0,0.01104]
[1768096686256,0.02388753,90695.0,90685.0,0.01104]
[1768096686458,0.02201,90698.0,90685.0,0.01104]
[1768096686658,0.02389175,90697.0,90685.0,0.01104]
[1768096686955,0.02389175,90696.0,90685.0,0.01104]
[1768096687162,0.02201,90698.0,90685.0,0.01104]
[1768096687361,0.02389775,90697.0,90685.0,0.01104]
[1768096687563,0.02389775,90696.0,90685.0,0.01104]
[1768096687758,0.02201,90698.0,90685.0,0.01104]
[1768096687950,0.02389775,90697.0,90685.0,0.01104]
[1768096688148,0.02389775,90696.0,90685.0,0.01104]
[1768096688353,0.02389775,90695.0,90685.0,0.01104]
[1768096688549,0.02389775,90694.0,90685.0,0.02065522]
[1768096688749,0.02201,90698.0,90685.0,0.02065522]
[1768096688954,0.02387552,90697.0,90685.0,0.02065522]
[1768096689157,0.02387552,90696.0,90685.0,0.02065522]
[1768096689356,0.02387552,90695.0,90685.0,0.02065522]
[1768096689556,0.02201,90698.0,90685.0,0.02065522]
[1768096689751,0.02387525,90697.0,90685.0,0.02065522]
[1768096690054,0.02387525,90696.0,90685.0,0.02065522]
[1768096690251,0.02387525,90695.0,90685.0,0.02065522]
[1768096690453,0.02201,90698.0,90685.0,0.02065522]
[1768096690666,0.02387451,90697.0,90685.0,0.02065522]
[1768096690867,0.02387451,90696.0,90685.0,0.02065522]
[1768096691062,0.02387451,90695.0,90685.0,0.02065522]
[1768096691263,0.02201,90698.0,90685.0,0.02065522]
[1768096691463,0.02387389,90697.0,90685.0,0.02065522]
[1768096691664,0.02387389,90696.0,90685.0,0.02065522]
[1768096691865,0.02387389,90695.0,90685.0,0.02065522]
[1768096692066,0.02201,90698.0,90685.0,0.02065522]
[1768096692266,0.02387388,90697.0,90685.0,0.02065522]
[1768096692464,0.02387388,90696.0,90685.0,0.02065522]
[1768096692664,0.02387388,90695.0,90685.0,0.02065522]
[1768096692865,0.02201,90698.0,90685.0,0.02065522]
[1768096693066,0.02387335,90697.0,90685.0,0.02065522]
[1768096693270,0.02387335,90696.0,90685.0,0.02065522]
[1768096693473,0.02387335,90695.0,90685.0,0.02065522]
[1768096693773,0.02201,90698.0,90685.0,0.00961522]
[1768096694073,0.02387292,90697.0,90685.0,0.00961522]
[1768096694259,0.02201,90698.0,90685.0,0.00961522]
[1768096694463,0.02387255,90697.0,90685.0,0.00961522]
[1768096694672,0.02201,90698.0,90685.0,0.00961522]
[1768096694873,0.02387255,90697.0,90685.0,0.00961522]
[1768096695175,0.02201,90698.0,90685.0,0.00961522]
[1768096695375,0.02387224,90697.0,90685.0,0.00961522]
[1768096695576,0.02201,90698.0,90685.0,0.00961522]
[1768096695770,0.02387224,90697.0,90685.0,0.00961522]
[1768096695972,0.02201,90698.0,90685.0,0.00961522]
[1768096696171,0.02387224,90697.0,90685.0,0.00961522]
[1768096696362,0.02201,90698.0,90685.0,0.00961522]
[1768096696566,0.02387199,90697.0,90681.0,0.0092784]
[1768096696772,0.02201,90698.0,90681.0,0.0092784]
[1768096696973,0.02387199,90697.0,90681.0,0.0092784]
[1768096697177,0.02201,90698.0,90681.0,0.0092784]
[1768096697367,0.02387181,90697.0,90681.0,0.0092784]
[1768096697567,0.09955157,90699.0,90681.0,0.0092784]
[1768096697862,0.02387181,90698.0,90681.0,0.0092784]
[1768096698069,0.09955157,90699.0,90681.0,0.0092784]
[1768096698070,0.02387181,90697.0,90681.0,0.0092784]
[1768096698264,0.09955157,90699.0,90681.0,0.0092784]
[1768096698477,0.02387167,90698.0,90681.0,0.0092784]
[1768096698672,0.02387167,90697.0,90681.0,0.0092784]
[1768096698873,0.09955157,90699.0,90681.0,0.0092784]
[1768096699069,0.02387167,90698.0,90681.0,0.01889362]
[1768096699274,0.09955157,90699.0,90681.0,0.01889362]
[1768096699573,0.02387156,90698.0,90681.0,0.00961522]
[1768096699774,0.09955157,90699.0,90681.0,0.00961522]
[1768096699975,0.02387157,90698.0,90681.0,0.00961522]
[1768096700175,0.09955157,90699.0,90681.0,0.00961522]
[1768096700375,0.02387152,90698.0,90681.0,0.00961522]
[1768096700680,0.09955157,90699.0,90681.0,0.00961522]
[1768096700881,0.03042,90697.0,90681.0,0.00961522]
[1768096703588,0.02387165,90696.0,90681.0,0.00961522]
[1768096703885,0.02387165,90695.0,90681.0,0.00961522]
[1768096704086,0.02387165,90694.0,90681.0,0.00961522]
[1768096704286,0.02387165,90693.0,90681.0,0.00961522]
[1768096704484,0.02387165,90692.0,90681.0,0.00961522]
[1768096704683,0.02387165,90691.0,90681.0,0.00961522]
[1768096704883,0.02387165,90690.0,90681.0,0.00961522]
[1768096705085,0.02387165,90689.0,90681.0,0.00961522]
[1768096705384,0.03042,90697.0,90681.0,0.00961522]
[1768096705586,0.02387193,90696.0,90681.0,0.00961522]
[1768096705884,0.02387193,90695.0,90681.0,0.00961522]
[1768096706185,0.02387193,90694.0,90681.0,0.00961522]
[1768096706384,0.02387193,90693.0,90681.0,0.00961522]
[1768096706683,0.02387193,90692.0,90681.0,0.00961522]
[1768096706873,0.02387193,90691.0,90681.0,0.00961522]
[1768096707079,0.02387193,90690.0,90681.0,0.00961522]
[1768096707279,0.02387193,90689.0,90681.0,0.00961522]
[1768096707478,0.03042,90697.0,90681.0,0.00961522]
[1768096707681,0.02387238,90696.0,90681.0,0.00961522]
[1768096707891,0.02387238,90695.0,90681.0,0.00961522]
[1768096708188,0.02387238,90694.0,90681.0,0.00961522]
[1768096708389,0.03622397,90697.0,90681.0,0.00961522]
[1768096708390,0.02387238,90693.0,90681.0,0.00961522]
[1768096708689,0.02387238,90692.0,90681.0,0.00961522]
[1768096708892,0.02387238,90691.0,90681.0,0.00961522]
[1768096709191,0.02387238,90690.0,90681.0,0.00961522]
[1768096709394,0.02387238,90689.0,90681.0,0.00961522]
[1768096709590,0.02387238,90688.0,90681.0,0.00961522]
[1768096709792,0.03622397,90697.0,90681.0,0.00961522]
[1768096709992,0.02387307,90696.0,90681.0,0.00961522]
[1768096710188,0.02387307,90695.0,90681.0,0.00961522]
[1768096710389,0.02387307,90694.0,90681.0,0.00961522]
[1768096710590,0.02387307,90693.0,90681.0,0.00961522]
[1768096710790,0.02387307,90692.0,90681.0,0.00961522]
[1768096710994,0.02387307,90691.0,90681.0,0.00961522]
[1768096711189,0.02387307,90690.0,90681.0,0.00961522]
[1768096711385,0.03622397,90697.0,90681.0,0.00961522]
[1768096711386,0.02387307,90689.0,90681.0,0.00961522]
[1768096711588,0.03622397,90697.0,90681.0,0.00961522]
[1768096711789,0.02387334,90696.0,90681.0,0.00961522]
[1768096711990,0.02387334,90695.0,90681.0,0.00961522]
[1768096712189,0.03622397,90697.0,90681.0,0.00961522]
[1768096712190,0.02387334,90694.0,90681.0,0.00961522]
[1768096712390,0.02387334,90693.0,90681.0,0.00961522]
[1768096712598,0.02387334,90692.0,90681.0,0.00961522]
[1768096712793,0.02387334,90691.0,90681.0,0.00961522]
[1768096713092,0.02387334,90690.0,90681.0,0.00961522]
[1768096713292,0.02387334,90689.0,90681.0,0.00961522]
[1768096713496,0.03622397,90697.0,90681.0,0.00961522]
[1768096713698,0.02387446,90696.0,90681.0,0.00961522]
[1768096713997,0.02387446,90695.0,90681.0,0.00961522]
[1768096714196,0.03622397,90697.0,90681.0,0.00961522]
[1768096714396,0.02387526,90696.0,90681.0,0.00961522]
[1768096714698,0.02387526,90695.0,90681.0,0.00961522]
[1768096714897,0.03622397,90697.0,90681.0,0.00961522]
[1768096715198,0.02387526,90696.0,90681.0,0.00961522]
[1768096715397,0.02387526,90695.0,90681.0,0.00961522]
[1768096715597,0.03622397,90697.0,90681.0,0.00961522]
[1768096715798,0.02387634,90696.0,90681.0,0.00961522]
[1768096716098,0.02387634,90695.0,90681.0,0.00961522]
[1768096716397,0.03622397,90697.0,90681.0,0.00961522]
[1768096716597,0.0238782,90696.0,90681.0,0.00961522]
[1768096716893,0.0238782,90695.0,90681.0,0.00961522]
[1768096717090,0.03622397,90697.0,90681.0,0.00961522]
[1768096717291,0.0238782,90696.0,90681.0,0.00961522]
[1768096717492,0.0238782,90695.0,90681.0,0.00961522]
[1768096717692,0.03622397,90697.0,90681.0,0.00961522]
[1768096717892,0.02387846,90696.0,90681.0,0.00961522]
[1768096718093,0.02387846,90695.0,90681.0,0.00961522]
[1768096718391,0.03622397,90697.0,90681.0,0.00961522]
[1768096718588,0.02389895,90696.0,90681.0,0.00961522]
[1768096718788,0.02389895,90695.0,90681.0,0.00961522]
[1768096718987,0.03622397,90697.0,90681.0,0.00961522]
[1768096719193,0.02389895,90696.0,90681.0,0.00961522]
[1768096719393,0.02389895,90695.0,90681.0,0.00961522]
[1768096719694,0.03622397,90697.0,90681.0,0.00961522]
[1768096719886,0.02389893,90696.0,90681.0,0.00961522]
[1768096720095,0.02389893,90695.0,90681.0,0.00961522]
[1768096720296,0.03622397,90697.0,90681.0,0.00961522]
[1768096720498,0.0238989,90696.0,90681.0,0.00961522]
[1768096720698,0.0238989,90695.0,90681.0,0.00961522]
[1768096720890,0.00582026,90696.0,90681.0,0.00961522]
[1768096721198,0.02389891,90695.0,90681.0,0.00961522]
[1768096721497,0.00582026,90696.0,90681.0,0.00961522]
[1768096721699,0.0238989,90695.0,90681.0,0.00961522]
[1768096721898,0.00582026,90696.0,90681.0,0.00961522]
[1768096722198,0.0238989,90695.0,90681.0,0.00961522]
[1768096722400,0.00582026,90696.0,90681.0,0.00961522]
[1768096722595,0.02389889,90695.0,90681.0,0.00961522]
[1768096722800,0.00582026,90696.0,90681.0,0.00961522]
[1768096723100,0.02389889,90695.0,90681.0,0.00961522]
[1768096723299,0.00582026,90696.0,90681.0,0.00961522]
[1768096723593,0.02389888,90695.0,90681.0,0.00961522]
[1768096723785,0.00582026,90696.0,90681.0,0.00961522]
[1768096723986,0.02389888,90695.0,90681.0,0.00961522]
[1768096724187,0.00582026,90696.0,90681.0,0.00961522]
[1768096724401,0.02389888,90695.0,90681.0,0.00961522]
[1768096724599,0.00582026,90696.0,90681.0,0.00961522]
[1768096724800,0.02389888,90695.0,90681.0,0.00961522]
[1768096725000,0.00582026,90696.0,90681.0,0.00961522]
[1768096725201,0.02389888,90695.0,90681.0,0.00961522]
[1768096725396,0.00582026,90696.0,90681.0,0.00961522]
[1768096725695,0.02389887,90695.0,90681.0,0.00961522]
[1768096725895,0.00582026,90696.0,90681.0,0.00961522]
[1768096726095,0.02389886,90695.0,90681.0,0.00961522]
[1768096726395,0.00582026,90696.0,90681.0,0.00961522]
[1768096726596,0.02389885,90695.0,90681.0,0.00961522]
[1768096726801,0.00582026,90696.0,90681.0,0.00961522]
[1768096727000,0.02389885,90695.0,90681.0,0.00961522]
[1768096727300,0.00582026,90696.0,90681.0,0.00961522]
[1768096727499,0.02389884,90695.0,90681.0,0.00961522]
[1768096727690,0.00582026,90696.0,90681.0,0.00961522]
[1768096727889,0.02389884,90695.0,90681.0,0.00961522]
[1768096728092,0.00582026,90696.0,90681.0,0.00961522]